Cogmind - Beta 15 @@@ ROGUE MODE // 2025.07.12 @ 10:21:09 Player: beans Result: Destroyed by as-38433 with Assembled Maul Performance ------------- Evolutions (0) 0 Regions Visited (2) 400 Robots Destroyed (25) 125 Value Destroyed (390) 390 Prototype IDs (0) 0 Alien Tech Used (0) 0 Bonus (0) 0 TOTAL SCORE: 915 Bonus ------- None Cogmind --------- Core Integrity 0/250 Matter 300/300 Energy 73/100 System Corruption 3% Temperature Cool (18) Movement Core (100) Ox1 Location -10/Mines Parts ------- > --- POWER (1) -------- (None) > --- PROPULSION (2) --- (None) > --- UTILITY (2) ------ Improved Targeting Computer > --- WEAPON (2) ------- Spread Laser Spread Laser > --- INVENTORY (5) ---- Weapon Shielding EM Shotgun Medium Laser Light Cannon Peak State ------------ > --- POWER ------------ Ion Engine > --- PROPULSION ------- VTOL Module VTOL Module > --- UTILITY ---------- Improved Targeting Computer Improved Targeting Computer > --- WEAPON ----------- EM Shotgun EM Shotgun > --- INVENTORY -------- Medium Laser [Rating: 13] Favorites ----------- Power Ion Engine Engine Ion Engine Propulsion VTOL Module Treads Light Treads Flight Unit VTOL Module Utility Improved Targeting Computer Processor Improved Targeting Computer Weapon Medium Laser Energy Gun Medium Laser Ballistic Cannon Light Cannon Build | -11 -10 -10 ------- Run | Yrd Mat Min Slots Evolved . | . . . Power . | . . . Propulsion . | . . . Utility . | . . . Weapon . | . . . Parts Attached 18 | 4 14 . Power 2 | . 2 . Engine 2 | . 2 . Core . | . . . Reactor . | . . . Propulsion 7 | 2 5 . Treads 2 | 2 . . Leg . | . . . Wheel . | . . . Hover . | . . . Flight 5 | . 5 . Utility 2 | . 2 . Device . | . . . Storage . | . . . Processor 2 | . 2 . Hackware . | . . . Protection . | . . . Artifact . | . . . Weapon 7 | 2 5 . Energy Gun 6 | 2 4 . Energy Cannon . | . . . Ballistic Gun . | . . . Ballistic Cannon 1 | . 1 . Launcher . | . . . Special Weapon . | . . . Impact Weapon . | . . . Slashing Weapon . | . . . Piercing Weapon . | . . . Special Melee Weapon . | . . . Unidentified Prototypes . | . . . Parts Lost 8 | . 4 4 Power 2 | . 1 1 Propulsion 3 | . 1 2 Utility 1 | . . 1 Weapon 2 | . 2 . Highest Loss Streak 3 | . 2 3 To Critical Strikes . | . . . Average Backups 1 | . 1 4 Power . | . . . Propulsion . | . . . Utility . | . . 1 Weapon 1 | . . 3 Tool/Special . | . . . Unused Backups 1 | . . 1 Power . | . . . Propulsion . | . . . Utility 1 | . . 1 Weapon . | . . . Tool/Special . | . . . Average Slot Usage (%) 74 | . 77 60 Engine 6 | . 7 1 Treads 6 | . 8 . Flight 14 | . 17 2 Processor 18 | . 15 28 Energy Gun 27 | . 27 28 Peak Build Rating 13 | 4 13 13 Average Rating 8 | 2 8 8 On Entrance 5 | . 4 13 Naked Turns . | . . . Heaviest Build 11 | 4 11 6 Greatest Support 40 | 40 40 3 Greatest Overweight (x) 1 | . 1 1 Average Overweight (x) . | . . 1 Largest Inventory Capacity 5 | 5 5 5 Average Capacity 5 | 5 5 5 Most Carried 5 | 4 5 4 Average Carried 1 | . 1 4 Final Capacity 5 | 5 5 5 Final Carried 4 | . 4 4 Class Distribution -------------------- 98% | Mutant Dominant Class ---------------- Mutant | -10/Materials Mutant | -10/Mines Resources | -11 -10 -10 ----------- Run | Yrd Mat Min Matter Collected 394 | 138 237 19 Remotely . | . . . Salvage Created 562 | . 463 99 Parts 46 | . 30 16 Haulers Intercepted . | . . . Recyclers Shooed . | . . . Parts Field Recycled . | . . . Retrieved Matter . | . . . Parts Self-Destructed . | . . . Prevented . | . . . Kills | -11 -10 -10 ------- Run | Yrd Mat Min Combat Hostiles Destroyed 17 | . 11 6 Guns 15 | . 9 6 AOE 1 | . 1 . Classes Destroyed 7 | . 5 2 Worker 3 | . 3 . Builder 1 | . . 1 Tunneler 1 | . . 1 Operator 1 | . 1 . Watcher 2 | . 2 . Swarmer 11 | . 5 6 Grunt 6 | . 6 . Best Kill Streak 6 | . 4 6 Combat Bots Only 6 | . 3 6 Max Kills in Single Turn 2 | . 2 2 Gunslinging 1 | . . 1 Exploded 1 | . 1 . Melee . | . . . Uniques/NPCs Destroyed . | . . . Combat | -11 -10 -10 -------- Run | Yrd Mat Min Hostile Shots Fired 123 | . 82 41 Missed 40 | . 32 8 Hits 83 | . 50 33 Melee 1 | . . 1 Projectile 82 | . 50 32 Critical Strikes 1 | . 1 . Damage Taken 797 | . 506 291 Core 258 | . 143 115 Absorbed by Shields . | . . . Core Remaining (%) 100 | 100 . . Volleys Fired 61 | . 49 12 Largest 2 | . 2 2 Hottest 130 | . 130 130 Shots Fired 119 | . 95 24 Gun 118 | . 94 24 Cannon 1 | . 1 . Launcher . | . . . Special . | . . . Kinetic 1 | . 1 . Thermal 87 | . 63 24 Explosive . | . . . Electromagnetic 31 | . 31 . Robot Hit Streak 9 | . 9 5 Robot Miss Streak 6 | . 4 6 Penetration Max . | . . . Secondary Targets 5 | . 2 3 Max Gunslinging Chain 1 | . 1 1 Shots Hit Robots 66 | . 44 22 Core Hits 49 | . 25 24 Critical Kills . | . . . Critical Parts Destroyed . | . . . Critical Strikes 3 | . 3 . Burn 3 | . 3 . Melee Attacks . | . . . Impact . | . . . Slashing . | . . . Piercing . | . . . Sneak Attacks . | . . . Combat Hostiles . | . . . Follow-up Attacks . | . . . Damage Inflicted 1012 | . 773 239 Guns 890 | . 651 239 Cannons . | . . . Explosions 122 | . 122 . Melee . | . . . Ramming . | . . . Kinetic . | . . . Thermal 701 | . 462 239 Explosive . | . . . Electromagnetic 311 | . 311 . Impact . | . . . Slashing . | . . . Piercing . | . . . Highest Corruption . | . . . Average Corruption . | . . . Corruption Purged . | . . . Corruption Blocked . | . . . Overload Shots . | . . . Overflow Damage 1 | . 1 . Projectiles . | . . . Explosions 1 | . 1 . Melee . | . . . Knockbacks . | . . . Impact . | . . . Kinetic . | . . . Secondary . | . . . Self-Inflicted Damage 38 | . 38 . Shots 2 | . 2 . Rammed . | . . . Targets Rammed . | . . . Kicked . | . . . Crushed . | . . . Highest Temperature 407 | . 407 396 Average Temperature 112 | . 99 161 Received Heat Transfer 144 | . 144 . Effects 7 | . 5 2 Shutdowns 1 | . 1 . Energy Bleed 1 | . 1 . Interference 4 | . 2 2 Matter Decay 1 | . 1 . Siege Activations . | . . . Martial Activations . | . . . Shielding Activations . | . . . Robots Disrupted . | . . . Combat Hostiles . | . . . Robots Corrupted 1 | . 1 . Combat Hostiles 1 | . 1 . Parts Fried 1 | . 1 . Impact Corruptions . | . . . Robots Melted . | . . . Combat Hostiles . | . . . Parts Melted 3 | . 3 . Heat Transferred 1661 | . 1371 290 Parts Sabotaged . | . . . Parts Stolen . | . . . Parts Stripped . | . . . Power Chain Reactions 3 | . 3 . Alert | -11 -10 -10 ------- Run | Yrd Mat Min Maximum Alert Level . | . . . Low Security (%) 100 | 100 100 100 Level 1 . | . . . Level 2 . | . . . Level 3 . | . . . Level 4 . | . . . Level 5 . | . . . High Security . | . . . Max Security . | . . . Peak Influence 112 | . 112 112 Initial 12 | . . 12 Average 52 | . 49 76 Influence Increases 480 | . 330 150 Destroy 0b10 Robot/C 340 | . 220 120 Destroy 0b10 Robot/NC 40 | . 30 10 Destroy Leader 84 | . 64 20 Destroy Structure 16 | . 16 . Influence Decreases 448 | . 297 151 Entered New Map 21 | . . 21 Time Decay 347 | . 257 90 Lost Part 80 | . 40 40 Squads Dispatched 3 | . 3 . Investigation 2 | . 2 . Extermination . | . . . Reinforcement 1 | . 1 . Assault . | . . . Garrison . | . . . Intercept . | . . . Searches Triggered . | . . . Construction Impeded . | . . . Haulers Reinforced . | . . . Active Scanning Responses . | . . . Cargo Convoy Interrupts . | . . . Stealth | -11 -10 -10 --------- Run | Yrd Mat Min Distress Signals 2 | . 2 . Communications Jammed . | . . . Distress Signals . | . . . Times Spotted 29 | . 20 9 Peak Tracking Total 6 | . 5 6 Tactical Retreats . | . . . Traps | -11 -10 -10 ------- Run | Yrd Mat Min Traps Triggered 1 | . 1 . Indirectly . | . . . Trap Hack Attempts . | . . . Triggered . | . . . Disarmed . | . . . Reprogrammed 1 | . 1 . Reused . | . . . Traps Extracted . | . . . Installed . | . . . Triggered . | . . . Machines | -11 -10 -10 ---------- Run | Yrd Mat Min Machines Disabled . | . . . Max in Single Turn . | . . . Machines Repaired . | . . . Machines Dismantled . | . . . Machines Sabotaged . | . . . Overloaded Fab Kills . | . . . Hacking | -11 -10 -10 --------- Run | Yrd Mat Min Machines Accessed 1 | . 1 . Terminals 1 | . 1 . Fabricators . | . . . Repair Stations . | . . . Recycling Units . | . . . Scanalyzers . | . . . Garrison Access . | . . . Total Hacks 3 | . 3 . Successful 1 | . 1 . Failed 2 | . 2 . Catastrophic . | . . . Database Lockouts . | . . . Manual . | . . . Terminals 3 | . 3 . Fabricators . | . . . Repair Stations . | . . . Recycling Units . | . . . Scanalyzers . | . . . Garrison Access . | . . . Terminal Hacks 1 | . 1 . Reprogram Traps 1 | . 1 . Fabricator Hacks . | . . . Repair Station Hacks . | . . . Recycling Unit Hacks . | . . . Scanalyzer . | . . . Garrison Access Hacks . | . . . Unauthorized Hacks . | . . . Terminals . | . . . Fabricators . | . . . Repair Stations . | . . . Recycling Units . | . . . Scanalyzers . | . . . Garrison Access . | . . . Data Cores Recovered . | . . . Used . | . . . Hacking Detections 1 | . 1 . Full Trace Events 1 | . 1 . Feedback Events . | . . . Feedback Blocked . | . . . Robot Schematics Acquired . | . . . Robots Built . | . . . Authchips . | . . . Time . | . . . Total Robot Build Rating . | . . . Part Schematics Acquired . | . . . Parts Built . | . . . Authchips . | . . . Time . | . . . Total Part Build Rating . | . . . Parts Repaired . | . . . Time . | . . . Parts Recycled . | . . . Recycled Matter . | . . . Retrieved Matter . | . . . Retrieved Components . | . . . Parts Scanalyzed . | . . . Part Schematics Acquired . | . . . Parts Damaged . | . . . Bothacking | -11 -10 -10 ------------ Run | Yrd Mat Min Used RIF Installer . | . . . Robots Hacked . | . . . Non-combat . | . . . Combat . | . . . Robot Hacks Applied . | . . . Relay Couplers Released . | . . . Fabnet Peak Effective % . | . . . Robots Rewired . | . . . Allies Hacked . | . . . Hacks Repelled . | . . . Allies | -11 -10 -10 -------- Run | Yrd Mat Min Total Allies . | . . . Largest Group . | . . . Highest-Rated Group . | . . . Highest-Rated Ally . | . . . Total Orders . | . . . Ally Attacks . | . . . Total Damage . | . . . Kills . | . . . Allies Corrupted . | . . . Allies Melted . | . . . Intel | -11 -10 -10 ------- Run | Yrd Mat Min Active Infowar (turns) . | . . . Robot Analysis Total . | . . . Derelict Logs Recovered 1 | . . 1 Drone Launches . | . . . Drone Recoveries . | . . . Exploration | -11 -10 -10 ------------- Run | Yrd Mat Min Turns Passed 1040 | 55 789 196 Spaces Moved 729 | 43 544 142 Core 195 | 19 34 142 Treads 144 | 24 120 . Legs . | . . . Wheels . | . . . Hover . | . . . Flight 390 | . 390 . Fastest Speed 32 | 50 32 100 Average Speed 104 | 111 105 100 Slowest Speed 160 | 160 160 100 Overloaded Moves . | . . . Propulsion Burnouts . | . . . Robots Hopped . | . . . Potential Cave-ins . | . . . Cave-ins Triggered . | . . . Exploration Rate (%) 38 | 3 73 38 Regions Visited 2 Branch Regions 1 Pre-discovered Areas . | . . . Known Exits Taken . | . . . Unknown Exits Taken 2 | 1 1 . Scrap Searched . | . . . Spaces Dug . | . . . Terrain Destroyed 14 | . 14 . Melee . | . . . Projectile . | . . . AOE 14 | . 14 . Terrain Rammed . | . . . Walls Destroyed . | . . . Machines Disabled . | . . . Actions | -11 -10 -10 --------- Run | Yrd Mat Min Total 886 | 50 662 174 Wait 56 | . 36 20 Move 727 | 42 543 142 Hop . | . . . Pick Up 19 | 4 15 . Fast Attach . | . . . Attach 12 | 4 8 . Detach . | . . . Swap 7 | . 7 . Drop 4 | . 4 . Fire 61 | . 49 12 Melee . | . . . Ram . | . . . Kick . | . . . Crush . | . . . Escape Stasis . | . . . Rewire . | . . . Trap . | . . . Miscellaneous . | . . . Route ------- -11/Scrapyard -10/Materials (discovered 4 exits: [*Mat x3] / [*Min]) -10/Mines History --------- Turn | Location | Event 7 | -11/Scrapyard | Discovered new exit (range 15) 56 | -11/Scrapyard | Entered Materials 290 | -10/Materials | Discovered new exit (range 15) 305 | -10/Materials | Build established: Mutant 362 | -10/Materials | Discovered new exit (range 11) 430 | -10/Materials | Core integrity fell below 50% 691 | -10/Materials | Discovered new exit (range 16) 790 | -10/Materials | Discovered new exit (range 14) 845 | -10/Materials | Entered Mines 869 | -10/Mines | Core integrity fell below 20% 889 | -10/Mines | Lost 3 parts (1p2n) 920 | -10/Mines | Assembled infested the area 925 | -10/Mines | Assisted by a Guerilla fighting off Assembled 1041 | -10/Mines | Destroyed by as-38433 with Assembled Maul Last Messages --------------- Overheating: System interference. Imp. Targeting Computer temporarily disabled. S-10 Pest destroyed. Acquired 10 matter. T-07 Excavator destroyed. Acquired 9 matter. ALERT: Infestation in the mines, dispatching Demolisher response squad. U-05 Engineer destroyed. A derelict emerges from the shadows: "You need to get out of here! I've been tracking a group of Assembled to figure out where they're coming from, and they're closing on this area, come on!" Acquired derelict log, extracted data. Data stored: Storage entrances (x1). K-01 Serf collects debris. Imp. Targeting Computer destroyed. System corrupted by crushing effect (+3). Map ----- +----------------------------------------------------+ | ?????????????????????????????????????????????????? | | ?????????????????????????????????????????????????? | | ?????????????????????????????????????????????????? | | ?????????????????????????????????????????????????? | | ?????????????????????????????????????????????????? | | ?????????????????????????????????????????????????? | | ?????????????????????????????????????????????????? | | ?????????????????????????????????????????????????? | | ?????????????????????????????????????????????????? | | ?????????????????????????????????????????????????? | | ?????????????????????????????????????????????????? | | ?????????????????????????????????????????????????? | | ?????????????????????????????????????????????????? | | ?????????????????????????????????????????????????? | | ?????????????????????????????????????????????????? | | ?????????????????????????????????????????????????? | | ?????????????????????????????????????????????????? | | ?????????????????????????????????????????????????? | | ?????????????????????????????????##??????????????? | | ??????????#######??????????????? ???????????????? | | ?????????## ##????????????? ????????????????? | | ????????## #????????????"??????????????????? | | ????????# #?????????##a???????????????????? | | ????????# #???????? a????????????????????? | | ????????# #########a#?????????????????????? | | ????????# @ #?????????????????????? | | ????????# ########## #?????????????????????? | | ????????## ###????????? #?????????????????????? | | ?????????## ##????#####???#? ? ???????????????? | | ??????????# #????## ### ## # #??????????????? | | ??????????# ###### = ## # #??????????????? | | ?????????## = *% %* # # #??????????????? | | ?????????# % [% # # #??????????????? | | ?????????# % #### #### ## # #??????????????? | | ?????????## = #??#=#?????## # #??????????????? | | ??????????## ###### #??????# ##?????????????? | | ???????????####??# [*#??????? ##????????????? | | ?????????????????# #???????# ##???????????? | | ???????????####??# ##???????# ##??????????? | | ??????????## #### #????????# ###????????? | | ########### ###??????# ###??????? | | # ##?????# ##?????? | | # ### ####### |! ##????? | | # ####### ! ## *%| =%* #????? | | # #?????## [ =### | | # #??????### ####### ##??????????? | | # ##???????## | ##???####### #####???????? | | # #????????## [ ########### #???????? | | # ##???????## ### #???????? | | # ##?????## ### ########?# #???????? | +----------------------------------------------------+ Best States ------------- Heat Dissipation 25 Energy Generation 10 Energy Capacity 250 Matter Stores 300 Matter Capacity 300 Sight Range 16 Terrain Scan Density 10 Evasion (%) 63 Targeting Accuracy 12 Recoil Reduction 2 Item Schematics ----------------- None Robot Schematics ------------------ None Fabricated ------------ Nothing Repaired ---------- Nothing Alien Tech Used ----------------- None Achievements -------------- None Challenges ------------ None Game ------ Seed AdvancedMultireflexMount Manual? 0 Play Time 00:09:57 Cumulative 46.7 hours Start 2025.07.12 @ 10:12:57 End 2025.07.12 @ 10:21:09 Sessions 1 Manual Loads 0 Difficulty Rogue Special Mode None Game No. 216 Rogue 216 Adventurer 0 Explorer 0 Win Type - Total 0 Types 0/0/0/0/0/0/0/0/0/0 Lore% 32 Gallery% 26 Achievement% 23 Wizard Run 0 Options --------- Layout 2 ASCII 0 Keyboard 0 Movement Mouse Keybinds 0 Fullscreen 1 Font 24/Smallcaps Map View 50x44 Zoom Use 0% Tactical HUD 0 Map Filters NONE Filters NONE Steam 1 RUN: 4b3e18df-f59f-4068-af67-7bb14032c982